[Event "Božićni turnir u VaraždinskimToplicama 26.12.2025."]
[Site "Varazdinske Toplice, Croatia"]
[Date "2025.12.26"]
[Round "7.3"]
[White "Vidovic, Sasa"]
[Black "Bozinovic, Bogdan"]
[Result "1-0"]
[TimeControl "10"]
[WhiteFideId "14505010"]
[BlackFideId "14502593"]
[WhiteElo "2202"]
[BlackElo "2129"]

1. b3 {[%clk 00:09:58]} {[%emt 00:00:02]} e5 {[%emt 00:00:02]} 2. Bb2 Nc6
{[%clk 00:09:57]} {[%emt 00:00:01]} 3. e3 {[%clk 00:09:57]} g6 {[%clk
00:09:55]} {[%emt 00:00:03]} 4. Nf3 {[%clk 00:09:55]} {[%emt 00:00:02]} Bg7
{[%clk 00:09:54]} 5. d4 {[%clk 00:09:36]} {[%emt 00:00:20]} exd4 {[%clk
00:09:13]} {[%emt 00:00:41]} 6. Nxd4 {[%clk 00:09:34]} {[%emt 00:00:02]} Nxd4
{[%clk 00:09:07]} {[%emt 00:00:06]} 7. Bxd4 {[%clk 00:09:25]} {[%emt 00:00:09]}
Bxd4 {[%clk 00:09:01]} {[%emt 00:00:06]} 8. Qxd4 {[%clk 00:08:21]} {[%emt
00:01:04]} Qf6 {[%clk 00:08:47]} {[%emt 00:00:13]} 9. Nc3 {[%clk 00:08:20]} c6
{[%clk 00:08:20]} {[%emt 00:00:27]} 10. O-O-O {[%clk 00:07:30]} {[%emt
00:00:51]} Qxd4 {[%clk 00:08:04]} {[%emt 00:00:15]} 11. Rxd4 {[%clk 00:07:16]}
{[%emt 00:00:15]} d5 {[%clk 00:08:01]} {[%emt 00:00:03]} 12. e4 {[%clk
00:07:14]} {[%emt 00:00:02]} dxe4 {[%clk 00:07:51]} {[%emt 00:00:09]} 13. Nxe4
{[%clk 00:07:12]} {[%emt 00:00:02]} Be6 {[%clk 00:07:17]} {[%emt 00:00:35]} 14.
Nd6+ {[%clk 00:07:09]} {[%emt 00:00:03]} Ke7 {[%clk 00:07:15]} {[%emt
00:00:02]} 15. Nxb7 {[%clk 00:07:07]} {[%emt 00:00:01]} Nf6 {[%clk 00:07:12]}
{[%emt 00:00:04]} 16. Be2 {[%clk 00:06:59]} {[%emt 00:00:08]} Bd5 {[%clk
00:06:48]} {[%emt 00:00:24]} 17. f3 {[%clk 00:06:11]} {[%emt 00:00:48]} a5
{[%clk 00:06:30]} {[%emt 00:00:18]} 18. a4 {[%clk 00:06:04]} {[%emt 00:00:07]}
c5 {[%clk 00:06:00]} {[%emt 00:00:30]} 19. Nxc5 {[%clk 00:05:27]} {[%emt
00:00:37]} Rhc8 {[%clk 00:05:59]} {[%emt 00:00:01]} 20. Ne4 {[%clk 00:04:51]}
{[%emt 00:00:36]} Bxb3 {[%clk 00:05:50]} {[%emt 00:00:08]} 21. Bd3 {[%clk
00:04:49]} {[%emt 00:00:03]} Rab8 {[%clk 00:05:30]} {[%emt 00:00:20]} 22. Re1
{[%clk 00:04:23]} {[%emt 00:00:25]} Nxe4 {[%clk 00:05:07]} {[%emt 00:00:23]} 23.
Rexe4+ {[%clk 00:04:18]} {[%emt 00:00:05]} Kf8 {[%clk 00:05:01]} {[%emt
00:00:06]} 24. Re5 {[%clk 00:04:14]} {[%emt 00:00:05]} Ba2 {[%clk 00:04:44]}
{[%emt 00:00:16]} 25. Rxa5 {[%clk 00:04:00]} {[%emt 00:00:15]} Rb1+ {[%clk
00:04:42]} {[%emt 00:00:02]} 26. Kd2 {[%clk 00:03:59]} Rg1 {[%clk 00:04:41]}
{[%emt 00:00:01]} 27. Rg5 {[%clk 00:03:30]} {[%emt 00:00:30]} h6 {[%clk
00:04:19]} {[%emt 00:00:22]} 28. Rg3 {[%clk 00:03:28]} {[%emt 00:00:01]} Be6
{[%clk 00:04:07]} {[%emt 00:00:12]} 29. f4 {[%clk 00:02:57]} {[%emt 00:00:31]}
Ra1 {[%clk 00:03:52]} {[%emt 00:00:16]} 30. Re3 {[%clk 00:02:45]} {[%emt
00:00:12]} Kg7 {[%clk 00:03:31]} {[%emt 00:00:21]} 31. Re5 {[%clk 00:02:28]}
{[%emt 00:00:16]} Ra8 {[%clk 00:03:25]} {[%emt 00:00:06]} 32. Bb5 {[%clk
00:02:20]} {[%emt 00:00:08]} Ra2 {[%clk 00:03:16]} {[%emt 00:00:09]} 33. Rc5
{[%clk 00:02:13]} {[%emt 00:00:08]} Ra1 {[%clk 00:02:58]} {[%emt 00:00:18]} 34.
Kc3 {[%clk 00:01:56]} {[%emt 00:00:17]} Rg1 {[%clk 00:02:47]} {[%emt 00:00:11]}
35. Rd2 {[%clk 00:01:55]} {[%emt 00:00:01]} Ra1 {[%clk 00:02:37]} {[%emt
00:00:09]} 36. Rc7 {[%clk 00:01:51]} {[%emt 00:00:05]} Kf6 {[%clk 00:02:32]}
{[%emt 00:00:05]} 37. h3 {[%clk 00:01:48]} {[%emt 00:00:03]} h5 {[%clk
00:02:31]} {[%emt 00:00:01]} 38. Rc6 {[%clk 00:01:45]} {[%emt 00:00:03]} Kf5
{[%clk 00:02:22]} {[%emt 00:00:09]} 39. Rf2 {[%clk 00:01:44]} {[%emt 00:00:02]}
Ra3+ {[%clk 00:02:14]} {[%emt 00:00:07]} 40. Kb4 {[%clk 00:01:42]} {[%emt
00:00:02]} Re3 {[%clk 00:02:11]} {[%emt 00:00:03]} 41. g4+ {[%clk 00:01:36]}
{[%emt 00:00:06]} hxg4 {[%clk 00:02:09]} {[%emt 00:00:02]} 42. Bd3+ {[%clk
00:01:20]} {[%emt 00:00:16]} Kf6 {[%clk 00:01:56]} {[%emt 00:00:13]} 43. hxg4
{[%clk 00:01:19]} {[%emt 00:00:01]} Rb8+ {[%clk 00:01:44]} {[%emt 00:00:12]} 44.
Kc3 {[%clk 00:01:16]} {[%emt 00:00:02]} Ke7 {[%clk 00:01:40]} {[%emt 00:00:04]}
45. f5 {[%clk 00:01:16]} gxf5 {[%clk 00:01:34]} {[%emt 00:00:06]} 46. gxf5
{[%clk 00:01:15]} {[%emt 00:00:01]} Bd7 {[%clk 00:01:29]} {[%emt 00:00:04]} 47.
f6+ {[%clk 00:01:11]} {[%emt 00:00:05]} Kd8 {[%clk 00:01:27]} {[%emt 00:00:02]}
48. Rc4 {[%clk 00:01:10]} {[%emt 00:00:01]} Ra8 {[%clk 00:01:20]} {[%emt
00:00:07]} 49. Rh2 {[%clk 00:01:04]} {[%emt 00:00:06]} Rxa4 {[%clk 00:01:17]}
{[%emt 00:00:04]} 50. Rxa4 {[%clk 00:00:52]} {[%emt 00:00:11]} Bxa4 {[%clk
00:01:16]} 51. Rh7 {[%clk 00:00:45]} {[%emt 00:00:07]} Ke8 {[%clk 00:01:08]}
{[%emt 00:00:08]} 52. Kd4 {[%clk 00:00:43]} {[%emt 00:00:02]} Rf3 {[%clk
00:01:06]} {[%emt 00:00:02]} 53. Rh6 {[%clk 00:00:40]} {[%emt 00:00:03]} Kd7
{[%clk 00:01:03]} {[%emt 00:00:03]} 54. c3 {[%clk 00:00:38]} {[%emt 00:00:02]}
Ke6 {[%clk 00:00:52]} {[%emt 00:00:10]} 55. Bc4+ {[%clk 00:00:37]} {[%emt
00:00:01]} Kf5 {[%clk 00:00:51]} 56. Bxf7 {[%emt 00:00:04]} Kg5 {[%clk
00:00:46]} {[%emt 00:00:04]} 57. Rg6+ {[%clk 00:00:34]} {[%emt 00:00:01]} Kf5
{[%clk 00:00:45]} 58. c4 {[%clk 00:00:30]} {[%emt 00:00:05]} Bb3 {[%clk
00:00:37]} {[%emt 00:00:07]} 59. Rh6 {[%clk 00:00:26]} {[%emt 00:00:04]} Rf4+
{[%clk 00:00:32]} {[%emt 00:00:05]} 60. Kc5 {[%clk 00:00:22]} {[%emt 00:00:03]}
Kg5 {[%clk 00:00:28]} {[%emt 00:00:04]} 61. Rg6 {[%clk 00:00:21]} {[%emt
00:00:01]} Kf5 {[%clk 00:00:27]} {[%emt 00:00:02]} 62. Rh6 {[%clk 00:00:21]}
Kg5 {[%clk 00:00:26]} 63. Rh5 {[%clk 00:00:19]} {[%emt 00:00:03]} Kxf6 {[%clk
00:00:25]} {[%emt 00:00:01]} 64. Bd5 {[%emt 00:00:01]} Rf1 {[%clk 00:00:19]}
{[%emt 00:00:06]} 65. Rh6+ {[%clk 00:00:18]} Kg5 {[%emt 00:00:02]} 66. Rh3 Ba2
{[%clk 00:00:14]} {[%emt 00:00:03]} 67. Rg3 {[%clk 00:00:17]} {[%emt 00:00:01]}
Kf4 {[%clk 00:00:13]} {[%emt 00:00:02]} 68. Rg2 {[%clk 00:00:16]} Bb3 {[%clk
00:00:12]} {[%emt 00:00:01]} 69. Kd4 {[%clk 00:00:15]} {[%emt 00:00:01]} Rc1
{[%clk 00:00:08]} {[%emt 00:00:03]} 70. Rf2 {[%clk 00:00:14]} {[%emt 00:00:02]}
Kg3 {[%clk 00:00:07]} {[%emt 00:00:01]} 71. Rf6 {[%clk 00:00:13]} {[%emt
00:00:01]} Kg4 {[%clk 00:00:05]} {[%emt 00:00:02]} 72. Kc5 {[%clk 00:00:12]}
{[%emt 00:00:01]} Kg5 {[%clk 00:00:04]} 73. Rf3 {[%clk 00:00:11]} Ba2 {[%clk
00:00:03]} {[%emt 00:00:01]} 74. Rg3 {[%clk 00:00:10]} {[%emt 00:00:01]} Kf4
{[%clk 00:00:03]} 75. Rg2 {[%clk 00:00:10]} Bb3 {[%clk 00:00:02]} 76. Rf2+
{[%clk 00:00:09]} Kg3 {[%clk 00:00:01]} {[%emt 00:00:01]} 77. Rb2 {[%clk
00:00:09]} Ba4 {[%emt 00:00:03]} 1-0

[Event "Božićni turnir u VaraždinskimToplicama 26.12.2025."]
[Site "Varazdinske Toplice, Croatia"]
[Date "2025.12.26"]
[Round "7.4"]
[White "Sostaric, Denis"]
[Black "Radic, Goran"]
[Result "0-1"]
[TimeControl "10"]
[WhiteFideId "14615851"]
[BlackFideId "14533995"]
[WhiteElo "1868"]
[BlackElo "2051"]

1. e4 {[%clk 00:09:59]} {[%emt 00:05:38]} d6 {[%clk 00:09:58]} {[%emt
00:00:03]} 2. d4 {[%clk 00:09:57]} {[%emt 00:00:02]} Nf6 {[%clk 00:09:57]}
{[%emt 00:00:02]} 3. Nc3 {[%clk 00:09:56]} {[%emt 00:00:01]} Nbd7 {[%clk
00:09:56]} {[%emt 00:00:01]} 4. Nf3 {[%clk 00:09:48]} {[%emt 00:00:07]} e5
{[%clk 00:09:55]} 5. Bc4 {[%clk 00:09:45]} {[%emt 00:00:03]} Be7 {[%clk
00:09:55]} 6. O-O {[%clk 00:09:41]} {[%emt 00:00:03]} O-O {[%clk 00:09:54]}
{[%emt 00:00:03]} 7. a4 {[%clk 00:09:38]} {[%emt 00:00:02]} c6 {[%clk
00:09:52]} {[%emt 00:00:02]} 8. Re1 {[%clk 00:09:36]} {[%emt 00:00:02]} Qc7
{[%clk 00:09:52]} 9. Bd3 {[%clk 00:09:30]} {[%emt 00:00:06]} Re8 {[%clk
00:09:45]} {[%emt 00:00:07]} 10. b3 {[%clk 00:09:10]} {[%emt 00:00:20]} a6
{[%clk 00:09:44]} {[%emt 00:00:02]} 11. Bb2 {[%clk 00:08:50]} {[%emt 00:00:19]}
c5 {[%clk 00:09:43]} {[%emt 00:00:02]} 12. d5 {[%clk 00:08:38]} {[%emt
00:00:11]} b6 {[%clk 00:09:29]} {[%emt 00:00:14]} 13. Ne2 {[%clk 00:08:28]}
{[%emt 00:00:10]} Nf8 {[%clk 00:09:18]} {[%emt 00:00:12]} 14. Ng3 {[%clk
00:08:22]} {[%emt 00:00:05]} Ng6 {[%clk 00:09:17]} {[%emt 00:00:02]} 15. c4
{[%clk 00:08:18]} {[%emt 00:00:04]} Nf4 {[%clk 00:09:15]} {[%emt 00:00:02]} 16.
Bf1 {[%clk 00:08:16]} {[%emt 00:00:01]} Bg4 {[%clk 00:09:12]} {[%emt 00:00:04]}
17. h3 {[%clk 00:08:12]} {[%emt 00:00:04]} Bd7 {[%clk 00:09:08]} {[%emt
00:00:04]} 18. Ne2 {[%clk 00:08:04]} {[%emt 00:00:07]} Ng6 {[%clk 00:09:02]}
{[%emt 00:00:07]} 19. Kh2 {[%clk 00:07:52]} {[%emt 00:00:11]} Nh5 {[%clk
00:08:55]} {[%emt 00:00:07]} 20. g3 {[%clk 00:07:46]} {[%emt 00:00:06]} Rf8
{[%clk 00:08:53]} {[%emt 00:00:02]} 21. g4 {[%clk 00:07:41]} {[%emt 00:00:04]}
Nhf4 {[%clk 00:08:52]} {[%emt 00:00:02]} 22. Nxf4 {[%clk 00:07:30]} {[%emt
00:00:11]} Nxf4 {[%clk 00:08:51]} {[%emt 00:00:01]} 23. Bc1 {[%clk 00:07:28]}
{[%emt 00:00:02]} Rae8 {[%clk 00:08:25]} {[%emt 00:00:26]} 24. Be3 {[%clk
00:06:42]} {[%emt 00:00:47]} h5 {[%clk 00:08:17]} {[%emt 00:00:08]} 25. Nd2
{[%clk 00:06:02]} {[%emt 00:00:39]} hxg4 {[%clk 00:08:11]} {[%emt 00:00:06]} 26.
hxg4 {[%clk 00:06:00]} {[%emt 00:00:02]} g5 {[%clk 00:08:07]} {[%emt 00:00:04]}
27. Bxf4 {[%clk 00:05:52]} {[%emt 00:00:08]} exf4 {[%clk 00:07:47]} {[%emt
00:00:21]} 28. Bd3 {[%clk 00:04:52]} {[%emt 00:01:00]} Bf6 {[%clk 00:07:45]}
{[%emt 00:00:02]} 29. Ra2 {[%clk 00:04:48]} {[%emt 00:00:04]} Kg7 {[%clk
00:07:40]} {[%emt 00:00:04]} 30. Kg2 {[%clk 00:04:44]} {[%emt 00:00:03]} Rh8
{[%clk 00:07:34]} {[%emt 00:00:07]} 31. f3 {[%clk 00:04:09]} {[%emt 00:00:35]}
Rh4 {[%clk 00:07:28]} {[%emt 00:00:05]} 32. Rh1 {[%clk 00:04:08]} {[%emt
00:00:02]} Reh8 {[%clk 00:07:27]} 33. Rxh4 Rxh4 34. Nf1 {[%clk 00:03:34]}
{[%emt 00:00:33]} Qc8 {[%clk 00:07:24]} {[%emt 00:00:04]} 35. a5 {[%clk
00:02:58]} {[%emt 00:00:36]} bxa5 {[%clk 00:07:21]} {[%emt 00:00:03]} 36. Rxa5
{[%clk 00:02:55]} {[%emt 00:00:03]} Qh8 {[%clk 00:06:58]} {[%emt 00:00:22]} 37.
Rxa6 {[%clk 00:02:12]} {[%emt 00:00:44]} Rh1 {[%clk 00:06:55]} {[%emt
00:00:02]} 38. Rxd6 {[%clk 00:02:02]} {[%emt 00:00:10]} Bd4 {[%clk 00:06:54]}
{[%emt 00:00:02]} 0-1

[Event "Božićni turnir u VaraždinskimToplicama 26.12.2025."]
[Site "Varazdinske Toplice, Croatia"]
[Date "2025.12.26"]
[Round "7.5"]
[White "Mravunac, Damir"]
[Black "Hergotic, Ivica"]
[Result "1-0"]
[TimeControl "10"]
[WhiteFideId "14502810"]
[BlackFideId "14523884"]
[WhiteElo "2044"]
[BlackElo "2054"]

1. f4 {[%clk 00:10:00]} {[%emt 00:10:23]} c5 {[%clk 00:09:51]} {[%emt
00:00:10]} 2. b3 {[%clk 00:09:58]} {[%emt 00:00:02]} Nc6 {[%clk 00:09:51]} 3.
Nf3 {[%clk 00:09:56]} {[%emt 00:00:02]} d5 {[%clk 00:09:49]} {[%emt 00:00:01]}
4. e3 {[%clk 00:09:54]} {[%emt 00:00:02]} Nf6 {[%clk 00:09:48]} {[%emt
00:00:02]} 5. Bb5 {[%clk 00:09:51]} {[%emt 00:00:02]} Bg4 {[%clk 00:09:39]}
{[%emt 00:00:10]} 6. Bb2 {[%clk 00:09:49]} {[%emt 00:00:02]} e6 {[%clk
00:09:22]} {[%emt 00:00:17]} 7. O-O {[%clk 00:09:46]} {[%emt 00:00:02]} Qb6
{[%clk 00:09:04]} {[%emt 00:00:19]} 8. Bxc6+ {[%clk 00:09:32]} {[%emt
00:00:13]} Qxc6 {[%clk 00:08:47]} {[%emt 00:00:17]} 9. d3 {[%clk 00:09:23]}
{[%emt 00:00:09]} Be7 {[%clk 00:08:30]} {[%emt 00:00:17]} 10. Nbd2 {[%clk
00:09:20]} {[%emt 00:00:03]} Nd7 {[%clk 00:08:10]} {[%emt 00:00:21]} 11. Qe1
{[%clk 00:09:16]} {[%emt 00:00:03]} Bxf3 {[%clk 00:07:50]} {[%emt 00:00:20]} 12.
Nxf3 {[%clk 00:09:14]} {[%emt 00:00:02]} Bf6 {[%clk 00:07:49]} {[%emt
00:00:01]} 13. Be5 {[%clk 00:08:41]} {[%emt 00:00:33]} Bxe5 {[%clk 00:06:45]}
{[%emt 00:01:05]} 14. fxe5 {[%clk 00:08:34]} {[%emt 00:00:05]} h6 {[%clk
00:06:27]} {[%emt 00:00:19]} 15. Qg3 {[%clk 00:08:28]} {[%emt 00:00:06]} O-O
{[%clk 00:05:56]} {[%emt 00:00:32]} 16. Rf2 {[%clk 00:08:20]} {[%emt 00:00:07]}
f6 {[%clk 00:05:52]} {[%emt 00:00:05]} 17. Raf1 {[%clk 00:07:52]} {[%emt
00:00:27]} fxe5 {[%clk 00:05:31]} {[%emt 00:00:21]} 18. Nxe5 {[%clk 00:07:48]}
{[%emt 00:00:04]} Nxe5 {[%clk 00:05:30]} {[%emt 00:00:02]} 19. Qxe5 {[%clk
00:07:42]} {[%emt 00:00:06]} Rxf2 {[%clk 00:05:28]} {[%emt 00:00:01]} 20. Rxf2
{[%clk 00:07:40]} Qd7 {[%clk 00:04:58]} {[%emt 00:00:31]} 21. h4 {[%clk
00:07:11]} {[%emt 00:00:29]} a6 {[%clk 00:04:51]} {[%emt 00:00:08]} 22. Qf4
{[%clk 00:07:02]} {[%emt 00:00:08]} Qe7 {[%clk 00:04:40]} {[%emt 00:00:11]} 23.
e4 {[%clk 00:06:28]} {[%emt 00:00:34]} Rf8 {[%clk 00:04:31]} {[%emt 00:00:09]}
24. Qg4 {[%clk 00:06:12]} {[%emt 00:00:16]} Rxf2 {[%clk 00:04:20]} {[%emt
00:00:12]} 25. Kxf2 {[%clk 00:06:10]} {[%emt 00:00:02]} Qf6+ {[%clk 00:04:13]}
{[%emt 00:00:06]} 26. Ke2 {[%clk 00:05:56]} {[%emt 00:00:14]} Qe5 {[%clk
00:03:52]} {[%emt 00:00:22]} 27. Kf3 {[%clk 00:05:38]} {[%emt 00:00:18]} Qf6+
{[%clk 00:03:30]} {[%emt 00:00:22]} 28. Kg3 {[%clk 00:05:19]} {[%emt 00:00:18]}
Kh7 {[%clk 00:03:14]} {[%emt 00:00:17]} 29. Qf3 {[%clk 00:05:02]} {[%emt
00:00:15]} Qe5+ {[%clk 00:03:07]} {[%emt 00:00:08]} 30. Qf4 {[%clk 00:04:45]}
{[%emt 00:00:17]} Qd4 {[%clk 00:02:08]} {[%emt 00:01:00]} 31. exd5 {[%clk
00:04:32]} {[%emt 00:00:13]} Qxd5 {[%emt 00:00:09]} 32. Qe4+ {[%clk 00:04:08]}
{[%emt 00:00:22]} Kg8 {[%clk 00:01:59]} {[%emt 00:00:01]} 33. Qxd5 {[%clk
00:03:53]} {[%emt 00:00:15]} exd5 {[%clk 00:01:58]} {[%emt 00:00:02]} 34. Kf4
{[%clk 00:03:52]} Kf7 {[%clk 00:01:41]} {[%emt 00:00:17]} 35. Ke5 {[%clk
00:03:48]} {[%emt 00:00:04]} d4 {[%clk 00:01:41]} 36. Kd6 {[%clk 00:03:36]}
{[%emt 00:00:12]} b6 {[%clk 00:01:40]} {[%emt 00:00:01]} 37. Kc6 {[%clk
00:03:27]} {[%emt 00:00:08]} Kg6 {[%clk 00:01:40]} 38. Kxb6 {[%clk 00:03:25]}
{[%emt 00:00:02]} Kh5 {[%clk 00:01:39]} 39. Kxc5 {[%clk 00:03:23]} {[%emt
00:00:03]} Kxh4 {[%clk 00:01:39]} 40. Kxd4 {[%clk 00:03:20]} {[%emt 00:00:02]}
Kg3 {[%clk 00:01:38]} {[%emt 00:00:01]} 41. c4 {[%clk 00:03:16]} {[%emt
00:00:04]} Kxg2 {[%clk 00:01:36]} {[%emt 00:00:03]} 42. c5 {[%clk 00:03:15]} h5
{[%clk 00:01:35]} {[%emt 00:00:01]} 43. c6 {[%clk 00:03:14]} {[%emt 00:00:01]}
h4 {[%clk 00:01:35]} 44. c7 {[%clk 00:03:13]} {[%emt 00:00:01]} h3 {[%clk
00:01:34]} 45. c8=Q {[%clk 00:03:09]} {[%emt 00:00:04]} h2 {[%clk 00:01:33]}
{[%emt 00:00:01]} 46. Qg4+ {[%clk 00:03:07]} {[%emt 00:00:02]} Kf2 {[%clk
00:01:32]} {[%emt 00:00:01]} 47. Qh4+ {[%clk 00:03:04]} {[%emt 00:00:02]} Kg2
{[%clk 00:01:31]} {[%emt 00:00:02]} 48. Qg4+ {[%clk 00:03:02]} {[%emt
00:00:02]} Kf2 {[%clk 00:01:30]} {[%emt 00:00:01]} 49. Qh3 {[%clk 00:03:00]}
{[%emt 00:00:01]} 1-0

[Event "Božićni turnir u VaraždinskimToplicama 26.12.2025."]
[Site "Varazdinske Toplice, Croatia"]
[Date "2025.12.26"]
[Round "7.6"]
[White "Sardi, Darko"]
[Black "Mitrovic, Boris"]
[Result "0-1"]
[TimeControl "10"]
[WhiteFideId "14511100"]
[BlackFideId "14610655"]
[WhiteElo "1905"]
[BlackElo "1968"]

1. e4 {[%clk 00:09:58]} {[%emt 00:00:02]} Nf6 {[%clk 00:10:00]} 2. e5 {[%clk
00:09:56]} {[%emt 00:00:02]} Nd5 {[%clk 00:09:59]} 3. c4 {[%clk 00:09:54]}
{[%emt 00:00:02]} Nb6 {[%clk 00:09:58]} 4. d4 {[%clk 00:09:53]} {[%emt
00:00:02]} d6 {[%clk 00:09:58]} 5. exd6 {[%clk 00:09:52]} {[%emt 00:00:01]}
cxd6 {[%clk 00:09:57]} 6. Be3 {[%clk 00:09:51]} {[%emt 00:00:02]} g6 {[%clk
00:09:56]} {[%emt 00:00:02]} 7. Nc3 {[%clk 00:09:49]} {[%emt 00:00:01]} Bg7
{[%clk 00:09:55]} {[%emt 00:00:01]} 8. Rc1 {[%clk 00:09:48]} O-O {[%clk
00:09:53]} {[%emt 00:00:02]} 9. Be2 {[%clk 00:09:44]} {[%emt 00:00:03]} Nc6
{[%clk 00:09:52]} 10. h3 {[%clk 00:09:42]} {[%emt 00:00:03]} e5 {[%clk
00:09:44]} {[%emt 00:00:09]} 11. Nf3 {[%clk 00:09:25]} {[%emt 00:00:16]} h6
{[%clk 00:09:22]} {[%emt 00:00:22]} 12. O-O {[%clk 00:09:22]} {[%emt 00:00:02]}
f5 {[%clk 00:09:01]} {[%emt 00:00:22]} 13. dxe5 {[%clk 00:09:15]} {[%emt
00:00:07]} dxe5 {[%clk 00:08:55]} {[%emt 00:00:06]} 14. Qxd8 {[%clk 00:09:08]}
{[%emt 00:00:07]} Rxd8 {[%clk 00:08:54]} {[%emt 00:00:01]} 15. Rfd1 {[%clk
00:08:47]} {[%emt 00:00:21]} Be6 {[%clk 00:08:53]} 16. b3 {[%clk 00:08:41]}
{[%emt 00:00:06]} Nd7 {[%clk 00:08:27]} {[%emt 00:00:27]} 17. Nb5 {[%clk
00:08:35]} {[%emt 00:00:06]} Rac8 {[%clk 00:07:50]} {[%emt 00:00:37]} 18. Nd6
{[%clk 00:08:10]} {[%emt 00:00:24]} Rb8 {[%clk 00:07:49]} 19. a3 {[%emt
00:00:33]} f4 {[%clk 00:07:37]} {[%emt 00:00:13]} 20. Bd2 {[%clk 00:07:23]}
{[%emt 00:00:14]} Nc5 {[%clk 00:07:31]} {[%emt 00:00:06]} 21. Be1 {[%clk
00:06:43]} {[%emt 00:00:40]} Nxb3 {[%clk 00:07:17]} {[%emt 00:00:14]} 22. Rb1
{[%clk 00:06:40]} {[%emt 00:00:02]} Nbd4 {[%clk 00:07:16]} {[%emt 00:00:02]} 23.
Nxd4 {[%clk 00:06:32]} {[%emt 00:00:08]} Nxd4 {[%clk 00:07:14]} {[%emt
00:00:02]} 24. Rxd4 {[%clk 00:06:03]} {[%emt 00:00:29]} exd4 {[%clk 00:07:13]}
{[%emt 00:00:01]} 25. c5 {[%clk 00:05:57]} {[%emt 00:00:06]} Be5 {[%clk
00:06:54]} {[%emt 00:00:19]} 26. Nc4 {[%clk 00:05:50]} {[%emt 00:00:07]} Bxc4
{[%clk 00:06:23]} {[%emt 00:00:31]} 27. Bxc4+ {[%clk 00:05:48]} {[%emt
00:00:02]} Kg7 {[%clk 00:06:22]} 28. Bd3 {[%clk 00:05:45]} {[%emt 00:00:03]}
Rdc8 {[%clk 00:06:10]} {[%emt 00:00:13]} 29. Bb4 {[%clk 00:05:30]} {[%emt
00:00:15]} Bf6 {[%clk 00:05:46]} {[%emt 00:00:24]} 30. Kf1 {[%clk 00:05:20]}
{[%emt 00:00:10]} Be7 {[%clk 00:05:45]} 31. Bd2 {[%clk 00:05:04]} {[%emt
00:00:16]} g5 {[%clk 00:05:42]} {[%emt 00:00:04]} 32. Bf5 {[%clk 00:04:53]}
{[%emt 00:00:10]} Rxc5 {[%clk 00:05:38]} {[%emt 00:00:04]} 33. Re1 {[%clk
00:04:44]} {[%emt 00:00:09]} Bf6 {[%clk 00:05:25]} {[%emt 00:00:13]} 34. Bd3
{[%clk 00:04:40]} {[%emt 00:00:04]} b5 {[%clk 00:05:10]} {[%emt 00:00:15]} 35.
Re6 {[%clk 00:04:31]} {[%emt 00:00:08]} Rb6 {[%clk 00:05:05]} {[%emt 00:00:05]}
36. Re8 {[%clk 00:04:30]} {[%emt 00:00:02]} Ra6 {[%clk 00:04:47]} {[%emt
00:00:16]} 37. Bb4 {[%clk 00:04:28]} {[%emt 00:00:04]} Rc1+ {[%clk 00:04:42]}
{[%emt 00:00:04]} 38. Ke2 {[%clk 00:04:27]} {[%emt 00:00:01]} Rc7 {[%clk
00:04:39]} {[%emt 00:00:04]} 39. Rb8 {[%clk 00:04:20]} {[%emt 00:00:07]} Rb6
{[%clk 00:04:36]} {[%emt 00:00:04]} 40. Ra8 {[%clk 00:04:08]} {[%emt 00:00:11]}
Re6+ {[%clk 00:04:31]} {[%emt 00:00:05]} 41. Kf3 {[%clk 00:04:06]} {[%emt
00:00:01]} Rec6 {[%clk 00:04:16]} {[%emt 00:00:16]} 42. Kg4 {[%clk 00:04:01]}
{[%emt 00:00:06]} a6 {[%clk 00:04:03]} {[%emt 00:00:13]} 43. Be4 {[%clk
00:03:27]} {[%emt 00:00:33]} Re6 {[%clk 00:03:55]} {[%emt 00:00:08]} 44. Bd3
{[%clk 00:03:25]} {[%emt 00:00:03]} Be7 {[%clk 00:03:50]} {[%emt 00:00:05]} 45.
Ba5 {[%clk 00:03:21]} {[%emt 00:00:03]} Rc1 {[%clk 00:03:27]} {[%emt 00:00:23]}
46. Ra7 {[%clk 00:03:16]} {[%emt 00:00:05]} Kf6 {[%clk 00:03:15]} {[%emt
00:00:12]} 47. Bf5 {[%clk 00:02:59]} {[%emt 00:00:17]} Rec6 {[%clk 00:02:54]}
{[%emt 00:00:21]} 48. Be4 {[%clk 00:02:55]} {[%emt 00:00:04]} Re6 {[%clk
00:02:38]} {[%emt 00:00:16]} 49. Bf5 {[%clk 00:02:48]} {[%emt 00:00:07]} Rcc6
{[%clk 00:02:36]} {[%emt 00:00:02]} 50. Bxe6 {[%clk 00:02:42]} {[%emt
00:00:06]} Kxe6 {[%clk 00:02:31]} {[%emt 00:00:05]} 51. Kh5 {[%clk 00:02:28]}
{[%emt 00:00:15]} Bxa3 {[%clk 00:02:26]} {[%emt 00:00:04]} 52. Kxh6 {[%clk
00:02:26]} {[%emt 00:00:02]} Kf5+ {[%clk 00:02:12]} {[%emt 00:00:15]} 53. Kh5
{[%clk 00:02:20]} {[%emt 00:00:05]} Bc5 {[%clk 00:02:00]} {[%emt 00:00:11]} 54.
Rd7 {[%clk 00:02:11]} {[%emt 00:00:10]} b4 {[%clk 00:01:54]} {[%emt 00:00:06]}
55. Rb7 {[%clk 00:02:01]} {[%emt 00:00:10]} d3 {[%clk 00:01:49]} {[%emt
00:00:05]} 56. g4+ {[%clk 00:01:57]} {[%emt 00:00:05]} fxg3 {[%clk 00:01:43]}
{[%emt 00:00:05]} 57. fxg3 {[%clk 00:01:53]} {[%emt 00:00:04]} d2 {[%clk
00:01:42]} {[%emt 00:00:01]} 58. Rf7+ {[%clk 00:01:20]} {[%emt 00:00:33]} Rf6
{[%clk 00:01:38]} {[%emt 00:00:05]} 59. Rd7 {[%clk 00:01:16]} {[%emt 00:00:04]}
Bd6 {[%clk 00:01:34]} {[%emt 00:00:03]} 60. Bxb4 {[%clk 00:00:50]} {[%emt
00:00:26]} d1=Q {[%clk 00:01:30]} {[%emt 00:00:04]} 61. g4+ {[%clk 00:00:49]}
Kf4 {[%clk 00:01:23]} {[%emt 00:00:08]} 62. Bc3 {[%clk 00:00:37]} {[%emt
00:00:11]} Re6 {[%clk 00:01:12]} {[%emt 00:00:11]} 63. Rf7+ {[%clk 00:00:33]}
{[%emt 00:00:05]} Kg3 {[%clk 00:01:10]} {[%emt 00:00:02]} 0-1